bitfinex-derivatives/quotes_BNBF0:USTF0_20250603
["timestamp","ask_amount","ask_price","bid_price","bid_amount"]
[1748992078803,1.02040451,661.03,661.02,0.3025627]
[1748992081614,1.02092475,661.03,661.02,0.3025627]
[1748992085314,1.50742966,661.25,661.02,0.3025627]
[1748992085513,1.13088173,661.14,661.02,0.3025627]
[1748992085718,1.02136583,661.13,661.02,0.3025627]
[1748992086019,1.02136583,661.12,661.02,0.3025627]
[1748992086316,1.02136583,661.11,661.02,0.3025627]
[1748992086616,1.02136583,661.1,661.02,0.3025627]
[1748992086816,1.02136583,661.09,661.02,0.3025627]
[1748992087019,1.02136583,661.08,661.02,0.3025627]
[1748992087320,1.02136583,661.07,661.02,0.3025627]
[1748992087520,1.02136583,661.06,661.02,0.3025627]
[1748992087719,1.02136583,661.05,661.02,0.3025627]
[1748992087918,1.02136583,661.04,661.02,0.3025627]
[1748992088118,1.02136583,661.03,661.02,0.3025627]
[1748992089222,1.50742966,661.19,661.02,0.3025627]
[1748992089722,1.13141139,661.08,661.02,0.3025627]
[1748992089921,1.02261694,661.07,661.02,0.3025627]
[1748992090120,1.02261694,661.06,661.02,0.3025627]
[1748992090319,1.02261694,661.05,661.02,0.3025627]
[1748992090517,1.02261694,661.04,661.02,0.3025627]
[1748992090717,1.02261694,661.03,661.02,0.3025627]
[1748992091324,3.76857415,661.72,661.02,0.3025627]
[1748992091525,1.13169581,661.07,661.02,0.3025627]
[1748992091724,1.02285603,661.06,661.02,0.3025627]
[1748992092025,1.02285603,661.05,661.02,0.3025627]
[1748992092225,1.02285603,661.04,661.02,0.3025627]
[1748992092521,1.02285603,661.03,661.02,0.3025627]
[1748992093226,1.50892774,661.18,661.02,0.3025627]
[1748992093421,1.13175811,661.07,661.02,0.3025627]
[1748992093622,1.02265863,661.06,661.02,0.3025627]
[1748992093921,1.02265863,661.05,661.02,0.3025627]
[1748992094125,1.02265863,661.04,661.02,0.3025627]
[1748992094319,1.02265863,661.03,661.02,0.3025627]
[1748992097227,1.50892774,661.19,661.02,0.3025627]
[1748992097527,1.13174982,661.07,661.02,0.3025627]
[1748992097729,1.02270551,661.06,661.02,0.3025627]
[1748992097926,1.02270551,661.05,661.02,0.3025627]
[1748992098126,1.02270551,661.04,661.02,0.3025627]
[1748992098323,1.02270551,661.03,661.02,0.3025627]
[1748992098827,3.76857415,661.78,661.02,0.3025627]
[1748992099023,1.13172951,661.1,661.02,0.3025627]
[1748992099230,1.02266528,661.09,661.02,0.3025627]
[1748992099422,2.26345903,661.39,661.02,0.3025627]
[1748992099423,1.02266689,661.08,661.02,0.3025627]
[1748992099623,1.02266689,661.07,661.02,0.3025627]
[1748992099827,1.02266689,661.06,661.02,0.3025627]
[1748992100025,1.02266689,661.05,661.02,0.3025627]
[1748992100224,1.02266689,661.04,661.02,0.3025627]
[1748992100427,1.02266689,661.03,661.02,0.3025627]
[1748992101328,1.02171532,661.03,661.02,0.3025627]
[1748992104738,1.02203967,661.03,661.02,0.3025627]
[1748992105338,1.50897269,661.3,661.02,0.3025627]
[1748992105540,1.13162727,661.17,661.02,0.3025627]
[1748992105840,2.15366612,661.16,661.02,0.3025627]
[1748992106040,1.02203885,661.15,661.02,0.3025627]
[1748992106238,1.02203885,661.14,661.02,0.3025627]
[1748992106538,1.02203885,661.13,661.02,0.3025627]
[1748992106738,1.02203885,661.12,661.02,0.3025627]
[1748992106940,1.02203885,661.11,661.02,0.3025627]
[1748992107139,1.02203885,661.1,661.02,0.3025627]
[1748992107338,1.02203885,661.09,661.02,0.3025627]
[1748992107640,1.02203885,661.08,661.02,0.3025627]
[1748992107838,1.02203885,661.07,661.02,0.3025627]
[1748992108035,1.02203885,661.06,661.02,0.3025627]
[1748992108334,1.02203885,661.05,661.02,0.3025627]
[1748992108536,1.02203885,661.04,661.02,0.3025627]
[1748992108737,1.02203885,661.03,661.02,0.3025627]
[1748992109235,1.02214952,661.03,661.02,0.3025627]
[1748992113038,1.50897269,661.27,661.02,0.3025627]
[1748992113245,1.13178287,661.12,661.02,0.3025627]
[1748992113438,1.02184621,661.11,661.02,0.3025627]
[1748992113643,1.02184621,661.1,661.02,0.3025627]
[1748992113842,1.02184621,661.09,661.02,0.3025627]
[1748992114044,1.02184621,661.08,661.02,0.3025627]
[1748992114241,1.02184621,661.07,661.02,0.3025627]
[1748992114445,1.02184621,661.06,661.02,0.3025627]
[1748992114647,1.02184621,661.05,661.02,0.3025627]
[1748992114843,1.02184621,661.04,661.02,0.3025627]
[1748992115044,1.02184621,661.03,661.02,0.3025627]
[1748992117144,1.02250486,661.03,661.02,0.3025627]
[1748992121051,1.02247179,661.03,661.02,0.3025627]
[1748992125053,1.02305943,661.03,661.02,0.3025627]
[1748992132955,1.02298428,661.03,661.02,0.3025627]
[1748992136962,1.02319073,661.03,661.02,0.3025627]
[1748992140663,1.02261494,661.03,661.02,0.3025627]
[1748992143167,1.50897269,661.29,661.02,0.3025627]
[1748992143365,1.13176099,661.18,661.02,0.3025627]
[1748992143565,1.02259983,661.17,661.02,0.3025627]
[1748992143766,1.02259983,661.16,661.02,0.3025627]
[1748992143960,1.02259983,661.15,661.02,0.3025627]
[1748992144160,1.13176099,661.18,661.02,0.3025627]
[1748992144161,1.02259983,661.14,661.02,0.3025627]
[1748992144365,1.02259983,661.13,661.02,0.3025627]
[1748992144569,1.02259983,661.12,661.02,0.3025627]
[1748992144867,1.02259983,661.11,661.02,0.3025627]
[1748992145068,1.13176099,661.18,661.02,0.3025627]
[1748992145069,1.02259983,661.1,661.02,0.3025627]
[1748992145268,1.02259983,661.09,661.02,0.3025627]
[1748992145566,1.02259983,661.08,661.02,0.3025627]
[1748992145768,1.02259983,661.07,661.02,0.3025627]
[1748992145968,1.02259983,661.06,661.02,0.3025627]
[1748992146166,1.02259983,661.05,661.02,0.3025627]
[1748992146364,1.02259983,661.04,661.02,0.3025627]
[1748992146566,1.02259983,661.03,661.02,0.3025627]
[1748992147270,1.02232267,661.03,661.02,0.3025627]
[1748992148670,1.0224895,661.03,661.02,0.3025627]
[1748992151172,1.02241541,661.03,661.02,0.3025627]
[1748992155174,1.02087597,661.03,661.02,0.3025627]
[1748992159079,1.02084706,661.03,661.02,0.3025627]
[1748992163180,1.0207985,661.03,661.02,0.3025627]
[1748992164978,1.02074736,661.03,661.02,0.3025627]
[1748992166980,1.50897269,661.33,661.02,0.3025627]
[1748992167176,1.13090524,661.2,661.02,0.3025627]
[1748992167378,2.1516073,661.19,661.02,0.3025627]
[1748992167578,1.02070206,661.18,661.02,0.3025627]
[1748992167876,1.02070206,661.17,661.02,0.3025627]
[1748992168075,1.02070206,661.16,661.02,0.3025627]
[1748992168275,1.02070206,661.15,661.02,0.3025627]
[1748992168475,1.02070206,661.14,661.02,0.3025627]
[1748992168675,1.02070206,661.13,661.02,0.3025627]
[1748992168876,1.02070206,661.12,661.02,0.3025627]
[1748992169178,1.02070206,661.11,661.02,0.3025627]
[1748992169480,3.76857415,661.94,661.02,0.3025627]
[1748992169481,1.02070206,661.1,661.02,0.3025627]
[1748992169683,1.02070206,661.09,661.02,0.3025627]
[1748992169979,1.02070206,661.08,661.02,0.3025627]
[1748992170179,1.02070206,661.07,661.02,0.3025627]
[1748992170480,1.02070206,661.06,661.02,0.3025627]
[1748992170779,1.02070206,661.05,661.02,0.3025627]
[1748992170980,1.02103222,661.04,661.02,0.3025627]
[1748992171176,1.02103222,661.03,661.02,0.3025627]
[1748992174981,3.76857415,661.93,661.02,0.3025627]
[1748992175685,1.02048166,662.23,661.02,0.3025627]
[1748992175987,1.13097577,661.19,661.02,0.3025627]
[1748992176183,1.02048166,661.18,661.02,0.3025627]
[1748992176383,1.02048166,661.17,661.02,0.3025627]
[1748992176684,1.02048166,661.16,661.02,0.3025627]
[1748992176885,1.02048166,661.15,661.02,0.3025627]
[1748992177086,1.02048166,661.14,661.02,0.3025627]
[1748992177386,1.02048166,661.13,661.02,0.3025627]
[1748992177586,1.02048166,661.12,661.02,0.3025627]
[1748992177786,1.02048166,661.11,661.02,0.3025627]
[1748992178082,1.02048166,661.1,661.02,0.3025627]
[1748992178286,1.02048166,661.09,661.02,0.3025627]
[1748992178482,1.02048166,661.08,661.02,0.3025627]
[1748992178687,1.02048166,661.07,661.02,0.3025627]
[1748992178887,1.02048166,661.06,661.02,0.3025627]
[1748992179088,1.02048166,661.05,661.02,0.3025627]
[1748992179288,1.0207225,661.04,661.02,0.3025627]
[1748992179488,1.0207225,661.03,661.02,0.3025627]
[1748992183186,1.02086399,661.03,661.02,0.3025627]
[1748992187087,1.50796769,661.28,661.02,0.3025627]
[1748992187289,1.13136749,661.16,661.02,0.3025627]
[1748992187490,1.02102897,661.15,661.02,0.3025627]
[1748992187689,1.02102897,661.14,661.02,0.3025627]
[1748992187892,1.02102897,661.13,661.02,0.3025627]
[1748992188088,1.02102897,661.12,661.02,0.3025627]
[1748992188290,1.02102897,661.11,661.02,0.3025627]
[1748992188494,1.02102897,661.1,661.02,0.3025627]
[1748992188794,1.02102897,661.09,661.02,0.3025627]
[1748992188996,1.02102897,661.08,661.02,0.3025627]
[1748992189196,1.02102897,661.07,661.02,0.3025627]
[1748992189497,1.02102897,661.06,661.02,0.3025627]
[1748992189696,1.13136749,661.17,661.02,0.3025627]
[1748992189697,1.02102897,661.05,661.02,0.3025627]
[1748992189891,1.02102897,661.04,661.02,0.3025627]
[1748992190094,1.02102897,661.03,661.02,0.3025627]
[1748992195201,1.02065822,661.03,661.02,0.3025627]
[1748992199102,1.02141398,661.03,661.02,0.3025627]
[1748992201499,1.50796769,661.23,661.02,0.3025627]
[1748992201703,1.13297945,661.11,661.02,0.3025627]
[1748992201900,1.02146377,661.1,661.02,0.3025627]
[1748992202205,1.02146377,661.09,661.02,0.3025627]
[1748992202402,1.13297945,661.11,661.02,0.3025627]
[1748992202403,1.02146377,661.08,661.02,0.3025627]
[1748992202603,1.02146377,661.07,661.02,0.3025627]
[1748992202904,1.02146377,661.06,661.02,0.3025627]
[1748992203199,1.02146377,661.05,661.02,0.3025627]
[1748992203405,1.02146377,661.04,661.02,0.3025627]
[1748992203704,1.02146377,661.03,661.02,0.3025627]
[1748992205606,1.02179834,661.03,661.02,0.3025627]
[1748992209408,1.02149244,661.03,661.02,0.3025627]
[1748992213410,1.02220358,661.03,661.02,0.3025627]
[1748992217315,1.02217242,661.03,661.02,0.3025627]
[1748992221212,1.02188518,661.03,661.02,0.3025627]
[1748992225122,1.50796769,661.21,661.02,0.3025627]
[1748992225317,1.13235666,661.08,661.02,0.3025627]
[1748992225518,1.02160588,661.07,661.02,0.3025627]
[1748992225718,1.02160588,661.06,661.02,0.3025627]
[1748992226018,1.02160588,661.05,661.02,0.3025627]
[1748992226220,1.02160588,661.04,661.02,0.3025627]
[1748992226422,1.02160588,661.03,661.02,0.3025627]
[1748992229225,1.02095518,661.03,661.02,0.3025627]
[1748992233026,1.02307279,661.03,661.02,0.3025627]
[1748992237037,1.02276284,661.03,661.02,0.3025627]
[1748992240939,1.02288939,661.03,661.02,0.3025627]
[1748992244936,1.02288289,661.03,661.02,0.3025627]
[1748992248944,1.02276714,661.03,661.02,0.3025627]
[1748992252846,1.50796769,661.24,661.02,0.3025627]
[1748992253043,1.13212417,661.09,661.02,0.3025627]
[1748992253243,1.0226977,661.08,661.02,0.3025627]
[1748992253448,1.0226977,661.07,661.02,0.3025627]
[1748992253648,1.0226977,661.06,661.02,0.3025627]
[1748992253848,1.0226977,661.05,661.02,0.3025627]
[1748992254143,1.13212417,661.11,661.02,0.3025627]
[1748992254144,1.0226977,661.04,661.02,0.3025627]
[1748992254349,1.0226977,661.03,661.02,0.3025627]
[1748992256852,1.50796769,661.23,661.02,0.3025627]
[1748992257046,1.13218233,661.09,661.02,0.3025627]
[1748992257349,1.02273393,661.08,661.02,0.3025627]
[1748992257547,1.02273393,661.07,661.02,0.3025627]
[1748992257746,1.02273393,661.06,661.02,0.3025627]
[1748992257945,1.02273393,661.05,661.02,0.3025627]
[1748992258148,1.02273393,661.04,661.02,0.3025627]
[1748992258345,1.13218233,661.09,661.02,0.3025627]
[1748992258346,1.02273393,661.03,661.02,0.3025627]
[1748992260748,1.02252636,661.03,661.02,0.3025627]
[1748992263445,1.0228358,661.03,661.02,0.3025627]
[1748992267353,1.50796769,661.23,661.02,0.3025627]
[1748992267552,1.13238585,661.09,661.02,0.3025627]
[1748992267751,1.02293597,661.08,661.02,0.3025627]
[1748992268051,1.02293597,661.07,661.02,0.3025627]
[1748992268251,1.02293597,661.06,661.02,0.3025627]
[1748992268449,1.02293597,661.05,661.02,0.3025627]
[1748992268647,1.02293597,661.04,661.02,0.3025627]
[1748992268853,1.02293597,661.03,661.02,0.3025627]
[1748992270453,1.02257828,661.03,661.02,0.3025627]
[1748992271248,1.02257592,661.03,661.02,0.3025627]
[1748992275359,1.02236835,661.03,661.02,0.3025627]
[1748992279259,1.02197272,661.03,661.02,0.3025627]
[1748992283260,1.02188875,661.03,661.02,0.3025627]
[1748992285357,1.02189621,661.03,661.02,0.3025627]
[1748992287164,1.02182991,661.03,661.02,0.3025627]
[1748992291066,1.50796769,661.41,661.02,0.3025627]
[1748992291267,1.13253554,661.19,661.02,0.3025627]
[1748992291466,1.02169284,661.18,661.02,0.3025627]
[1748992291666,1.02169284,661.17,661.02,0.3025627]
[1748992291862,1.02169284,661.16,661.02,0.3025627]
[1748992292062,1.02169284,661.15,661.02,0.3025627]
[1748992292268,1.02169284,661.14,661.02,0.3025627]
[1748992292468,1.02169284,661.13,661.02,0.3025627]
[1748992292669,1.02169284,661.12,661.02,0.3025627]
[1748992292970,1.02169284,661.11,661.02,0.3025627]
[1748992293271,1.02169284,661.1,661.02,0.3025627]
[1748992293468,1.02169284,661.09,661.02,0.3025627]
[1748992293673,1.02169284,661.08,661.02,0.3025627]
[1748992293864,1.02169284,661.07,661.02,0.3025627]
[1748992294069,1.02169284,661.06,661.02,0.3025627]
[1748992294267,1.02169284,661.05,661.02,0.3025627]
[1748992294466,1.02169284,661.04,661.02,0.3025627]
[1748992294771,1.02169284,661.03,661.02,0.3025627]
[1748992299067,1.02191596,661.03,661.02,0.3025627]
[1748992306970,1.02186143,661.03,661.02,0.3025627]
[1748992310979,1.01767362,661.03,661.02,0.3025627]
[1748992314586,1.0125185,661.03,661.02,0.3025627]
[1748992318685,1.01244021,661.03,661.02,0.3025627]
[1748992321390,1.01232285,661.03,661.02,0.3025627]
[1748992323293,1.13150152,661.29,661.02,0.3025627]
[1748992323494,1.01257957,661.28,661.02,0.3025627]
[1748992323694,1.01257957,661.27,661.02,0.3025627]
[1748992323895,1.01257957,661.26,661.02,0.3025627]
[1748992324096,1.01257957,661.25,661.02,0.3025627]
[1748992324392,1.01257957,661.24,661.02,0.3025627]
[1748992324591,1.01257957,661.23,661.02,0.3025627]
[1748992324796,1.01257957,661.22,661.02,0.3025627]
[1748992324991,1.0122662,661.21,661.02,0.3025627]
[1748992325195,1.0122662,661.2,661.02,0.3025627]
[1748992325496,1.0122662,661.19,661.02,0.3025627]
[1748992325698,1.0122662,661.18,661.02,0.3025627]
[1748992325899,1.0122662,661.17,661.02,0.3025627]
[1748992326094,1.0122662,661.16,661.02,0.3025627]
[1748992326301,1.0122662,661.15,661.02,0.3025627]
[1748992326597,1.0122662,661.14,661.02,0.3025627]
[1748992326798,1.0122662,661.13,661.02,0.3025627]
[1748992326999,1.0122662,661.12,661.02,0.3025627]
[1748992327201,1.0122662,661.11,661.02,0.3025627]
[1748992327402,1.0122662,661.1,661.02,0.3025627]
[1748992327701,1.13109296,661.43,661.02,0.3025627]
[1748992327900,1.01159466,661.42,661.02,0.3025627]
[1748992328098,1.01159466,661.41,661.02,0.3025627]
[1748992328302,1.01159466,661.4,661.02,0.3025627]
[1748992328499,1.01159466,661.39,661.02,0.3025627]
[1748992328695,1.01159466,661.38,661.02,0.3025627]
[1748992328895,1.01147444,661.37,661.02,0.3025627]
[1748992329103,1.01147444,661.36,661.02,0.3025627]
[1748992329298,1.01147444,661.35,661.02,0.3025627]
[1748992329499,1.01147444,661.34,661.02,0.3025627]
[1748992329698,1.01147444,661.33,661.02,0.3025627]
[1748992329903,1.01147444,661.32,661.02,0.3025627]
[1748992330099,1.01147444,661.31,661.02,0.3025627]
[1748992330305,1.01147444,661.3,661.02,0.3025627]
[1748992330498,1.13012067,661.45,661.02,0.3025627]
[1748992330499,1.01147444,661.29,661.02,0.3025627]
[1748992330699,1.01147444,661.28,661.02,0.3025627]
[1748992330903,1.01147444,661.27,661.02,0.3025627]
[1748992331099,1.01147444,661.26,661.02,0.3025627]
[1748992331405,1.01147444,661.25,661.02,0.3025627]
[1748992331701,1.01147444,661.24,661.02,0.3025627]
[1748992331900,1.13012067,661.46,661.02,0.3025627]
[1748992331901,1.01147444,661.23,661.02,0.3025627]
[1748992332105,1.01147444,661.22,661.02,0.3025627]
[1748992332407,1.01147444,661.21,661.02,0.3025627]
[1748992332701,1.01147444,661.2,661.02,0.3025627]
[1748992332909,1.01147444,661.19,661.02,0.3025627]
[1748992333103,1.13012067,661.51,661.02,0.3025627]
[1748992333307,1.01096807,661.5,661.02,0.3025627]
[1748992333507,1.01096807,661.49,661.02,0.3025627]
[1748992333802,3.76991923,662.6,661.02,0.3025627]
[1748992333803,1.01096807,661.48,661.02,0.3025627]
[1748992334007,1.01096807,661.47,661.02,0.3025627]
[1748992334201,1.01096807,661.46,661.02,0.3025627]
[1748992334402,1.01096807,661.45,661.02,0.3025627]
[1748992334602,1.01096807,661.44,661.02,0.3025627]
[1748992334806,1.01096807,661.43,661.02,0.3025627]
[1748992335008,1.01096807,661.42,661.02,0.3025627]
[1748992335207,1.01096807,661.41,661.02,0.3025627]
[1748992335402,1.01096807,661.4,661.02,0.3025627]
[1748992335601,1.01096807,661.39,661.02,0.3025627]
[1748992335804,1.01096807,661.38,661.02,0.3025627]
[1748992336007,1.01096807,661.37,661.02,0.3025627]
[1748992336203,1.01096807,661.36,661.02,0.3025627]
[1748992336403,1.0104585,661.35,661.02,0.3025627]
[1748992336603,1.0104585,661.34,661.02,0.3025627]
[1748992336808,1.0104585,661.33,661.02,0.3025627]
[1748992337008,1.0104585,661.32,661.02,0.3025627]
[1748992337204,1.0104585,661.31,661.02,0.3025627]
[1748992337509,1.0104585,661.3,661.02,0.3025627]
[1748992337705,1.0104585,661.29,661.02,0.3025627]
[1748992337905,1.0104585,661.28,661.02,0.3025627]
[1748992338105,1.0104585,661.27,661.02,0.3025627]
[1748992338409,1.0104585,661.26,661.02,0.3025627]
[1748992338606,1.0104585,661.25,661.02,0.3025627]
[1748992338808,1.0104585,661.24,661.02,0.3025627]
[1748992339108,1.0104585,661.23,661.02,0.3025627]
[1748992339304,1.1285787,661.46,661.02,0.3025627]
[1748992339505,1.01079094,661.45,661.02,0.3025627]
[1748992339704,1.01079094,661.44,661.02,0.3025627]
[1748992339909,1.01079094,661.43,661.02,0.3025627]
[1748992340110,1.01079094,661.42,661.02,0.3025627]
[1748992340407,1.01079094,661.41,661.02,0.3025627]
[1748992340611,1.01079094,661.4,661.02,0.3025627]
[1748992340808,1.01079094,661.39,661.02,0.3025627]
[1748992341012,1.01079094,661.38,661.02,0.3025627]
[1748992341307,1.01079094,661.37,661.02,0.3025627]
[1748992341512,1.01079094,661.36,661.02,0.3025627]
[1748992341712,1.01079094,661.35,661.02,0.3025627]
[1748992341915,1.01079094,661.34,661.02,0.3025627]
[1748992342213,1.01079094,661.33,661.02,0.3025627]
[1748992342413,1.01079094,661.32,661.02,0.3025627]
[1748992342617,1.01079094,661.31,661.02,0.3025627]
[1748992342817,1.1285787,661.47,661.02,0.3025627]
[1748992342818,1.01079094,661.3,661.02,0.3025627]
[1748992343012,1.01079094,661.29,661.02,0.3025627]
[1748992343214,1.01079094,661.28,661.02,0.3025627]
[1748992343413,1.01079094,661.27,661.02,0.3025627]
[1748992343614,2.26195154,661.73,661.02,0.3025627]
[1748992343615,1.01079094,661.26,661.02,0.3025627]
[1748992343810,1.01079094,661.25,661.02,0.3025627]
[1748992344015,1.01079094,661.24,661.02,0.3025627]
[1748992344310,1.12781965,661.47,661.02,0.3025627]
[1748992344515,1.01032129,661.46,661.02,0.3025627]
[1748992344711,1.01032129,661.45,661.02,0.3025627]
[1748992344912,1.01032129,661.44,661.02,0.3025627]
[1748992345117,1.01032129,661.43,661.02,0.3025627]
[1748992345315,1.01032129,661.42,661.02,0.3025627]
[1748992345516,1.50796769,661.6,661.02,0.3025627]
[1748992345716,1.12777892,661.47,661.02,0.3025627]
[1748992345914,1.01028472,661.46,661.02,0.3025627]
[1748992346219,1.01028472,661.45,661.02,0.3025627]
[1748992346413,1.01028472,661.44,661.02,0.3025627]
[1748992346618,1.01028472,661.43,661.02,0.3025627]
[1748992346814,1.01028472,661.42,661.02,0.3025627]
[1748992347014,1.01028472,661.41,661.02,0.3025627]
[1748992347216,1.01028472,661.4,661.02,0.3025627]
[1748992347418,1.01028472,661.39,661.02,0.3025627]
[1748992347619,1.01028472,661.38,661.02,0.3025627]
[1748992347819,1.01028472,661.37,661.02,0.3025627]
[1748992348113,1.01028472,661.36,661.02,0.3025627]
[1748992348319,1.01028472,661.35,661.02,0.3025627]
[1748992348520,1.01028472,661.34,661.02,0.3025627]
[1748992348818,1.01028472,661.33,661.02,0.3025627]
[1748992349018,1.01028472,661.32,661.02,0.3025627]
[1748992349220,1.01028472,661.31,661.02,0.3025627]
[1748992349419,1.01028472,661.3,661.02,0.3025627]
[1748992349619,1.01028472,661.29,661.02,0.3025627]
[1748992349815,1.01028472,661.28,661.02,0.3025627]
[1748992350020,1.01028472,661.27,661.02,0.3025627]
[1748992350219,1.01028472,661.26,661.02,0.3025627]
[1748992350519,1.01028472,661.25,661.02,0.3025627]
[1748992350721,1.12777892,661.44,661.02,0.3025627]
[1748992351020,1.00989408,661.43,661.02,0.3025627]
[1748992351222,1.00989408,661.42,661.02,0.3025627]
[1748992351420,1.00989408,661.41,661.02,0.3025627]
[1748992351719,1.00989408,661.4,661.02,0.3025627]
[1748992351920,1.50796769,661.54,661.02,0.3025627]
[1748992352121,1.12774482,661.44,661.02,0.3025627]
[1748992352323,1.00992992,661.43,661.02,0.3025627]
[1748992352622,1.00992992,661.42,661.02,0.3025627]
[1748992352822,1.00992992,661.41,661.02,0.3025627]
[1748992353026,1.00992992,661.4,661.02,0.3025627]
[1748992353226,1.12774482,661.44,661.02,0.3025627]
[1748992353227,1.00992992,661.39,661.02,0.3025627]
[1748992353425,1.00992992,661.38,661.02,0.3025627]
[1748992353726,1.00992992,661.37,661.02,0.3025627]
[1748992353920,1.00992992,661.36,661.02,0.3025627]
[1748992354124,1.00992992,661.35,661.02,0.3025627]
[1748992354324,1.00992992,661.34,661.02,0.3025627]
[1748992354528,1.00992992,661.33,661.02,0.3025627]
[1748992354725,1.00992992,661.32,661.02,0.3025627]
[1748992354925,1.00992992,661.31,661.02,0.3025627]
[1748992355221,1.00992992,661.3,661.02,0.3025627]
[1748992355427,1.00992992,661.29,661.02,0.3025627]
[1748992355627,1.00992992,661.28,661.02,0.3025627]
[1748992355827,1.00992992,661.27,661.02,0.3025627]
[1748992356028,1.00943294,661.26,661.02,0.3025627]
[1748992356224,1.00943294,661.25,661.02,0.3025627]
[1748992356427,1.00943294,661.24,661.02,0.3025627]
[1748992356730,1.12797579,661.43,661.02,0.3025627]
[1748992357029,1.00948979,661.42,661.02,0.3025627]
[1748992357327,1.00948979,661.41,661.02,0.3025627]
[1748992357627,1.00948979,661.4,661.02,0.3025627]
[1748992357826,1.00948979,661.39,661.02,0.3025627]
[1748992358027,1.00948979,661.38,661.02,0.3025627]
[1748992358224,1.00948979,661.37,661.02,0.3025627]
[1748992358428,1.00948979,661.36,661.02,0.3025627]
[1748992358626,1.00948979,661.35,661.02,0.3025627]
[1748992358830,1.00948979,661.34,661.02,0.3025627]
[1748992359030,1.00948979,661.33,661.02,0.3025627]
[1748992359231,1.00948979,661.32,661.02,0.3025627]
[1748992359431,1.00948979,661.31,661.02,0.3025627]
[1748992359631,1.00948979,661.3,661.02,0.3025627]
[1748992359826,1.0097988,661.29,661.02,0.3025627]
[1748992360127,1.0097988,661.28,661.02,0.3025627]
[1748992360330,1.0097988,661.27,661.02,0.3025627]
[1748992360630,1.0097988,661.26,661.02,0.3025627]
[1748992360832,1.0097988,661.25,661.02,0.3025627]
[1748992361031,1.0097988,661.24,661.02,0.3025627]
[1748992361330,1.0097988,661.23,661.02,0.3025627]
[1748992361530,1.0097988,661.22,661.02,0.3025627]
[1748992361731,1.12838467,661.42,661.02,0.3025627]
[1748992362030,1.00992614,661.41,661.02,0.3025627]
[1748992362230,1.00992614,661.4,661.02,0.3025627]
[1748992362430,1.00992614,661.39,661.02,0.3025627]
[1748992362731,1.00992614,661.38,661.02,0.3025627]
[1748992362925,1.00992614,661.37,661.02,0.3025627]
[1748992363128,1.00992614,661.36,661.02,0.3025627]
[1748992363329,1.00992614,661.35,661.02,0.3025627]
[1748992363526,1.00992614,661.34,661.02,0.3025627]
[1748992363826,1.00992614,661.33,661.02,0.3025627]
[1748992364031,3.76991923,662.1,661.02,0.3025627]
[1748992364032,1.00992614,661.32,661.02,0.3025627]
[1748992364232,1.00992614,661.31,661.02,0.3025627]
[1748992364531,1.00992614,661.3,661.02,0.3025627]
[1748992364726,1.00992614,661.29,661.02,0.3025627]
[1748992364930,1.00992614,661.28,661.02,0.3025627]
[1748992365125,1.00992614,661.27,661.02,0.3025627]
[1748992365426,1.00992614,661.26,661.02,0.3025627]
[1748992365627,1.00992614,661.25,661.02,0.3025627]
[1748992365931,1.00992614,661.24,661.02,0.3025627]
[1748992366126,1.00992614,661.23,661.02,0.3025627]
[1748992366327,1.00992614,661.22,661.02,0.3025627]
[1748992366529,1.00992614,661.21,661.02,0.3025627]
[1748992366725,1.00992614,661.2,661.02,0.3025627]
[1748992367030,1.00992614,661.19,661.02,0.3025627]
[1748992367230,1.00992614,661.18,661.02,0.3025627]
[1748992367530,1.00992614,661.17,661.02,0.3025627]
[1748992367731,1.01012012,661.16,661.02,0.3025627]
[1748992367933,1.12936964,661.53,661.02,0.3025627]
[1748992368132,1.01012033,661.52,661.02,0.3025627]
[1748992368331,1.01012033,661.51,661.02,0.3025627]
[1748992368534,1.01012033,661.5,661.02,0.3025627]
[1748992368733,1.01012033,661.49,661.02,0.3025627]
[1748992368933,1.01012033,661.48,661.02,0.3025627]
[1748992369130,1.01012033,661.47,661.02,0.3025627]
[1748992369334,1.01012033,661.46,661.02,0.3025627]
[1748992369634,1.01012033,661.45,661.02,0.3025627]
[1748992369836,1.01012033,661.44,661.02,0.3025627]
[1748992370035,1.01012033,661.43,661.02,0.3025627]
[1748992370238,1.01012033,661.42,661.02,0.3025627]
[1748992370438,1.01012033,661.41,661.02,0.3025627]
[1748992370638,1.01012033,661.4,661.02,0.3025627]
[1748992370838,1.01012033,661.39,661.02,0.3025627]
[1748992371038,1.01012033,661.38,661.02,0.3025627]
[1748992371237,1.01012033,661.37,661.02,0.3025627]
[1748992371440,1.01012033,661.36,661.02,0.3025627]
[1748992371740,1.50796769,661.72,661.02,0.3025627]
[1748992371935,1.13023721,661.51,661.02,0.3025627]
[1748992372135,2.14113321,661.5,661.02,0.3025627]
[1748992372335,1.010896,661.49,661.02,0.3025627]
[1748992372535,1.010896,661.48,661.02,0.3025627]
[1748992372839,1.010896,661.47,661.02,0.3025627]
[1748992373140,3.76991923,662.75,661.02,0.3025627]
[1748992373141,1.010896,661.46,661.02,0.3025627]
[1748992373334,1.010896,661.45,661.02,0.3025627]
[1748992373533,1.010896,661.44,661.02,0.3025627]
[1748992373736,1.010896,661.43,661.02,0.3025627]
[1748992373934,1.010896,661.42,661.02,0.3025627]
[1748992374137,1.010896,661.41,661.02,0.3025627]
[1748992374340,1.010896,661.4,661.02,0.3025627]